[Event "SuperChess Cup Rapid 2019"]
[Site "Bucharest"]
[Date "2019.11.06"]
[Round "2.2"]
[White "Deac, Bogdan-Daniel"]
[Black "David, Alexandru-Vasile"]
[Result "1/2-1/2"]
[ECO "E18"]
[WhiteElo "2613"]
[BlackElo "2424"]
[Annotator "RC"]
[PlyCount "68"]
[EventDate "2019.11.06"]
[EventType "tourn"]
[EventCountry "ROU"]
[SourceTitle "playchess.com"]
[Source "ChessBase"]
[SourceQuality "1"]
[TimeMode "Bronstein"]
[TimeControl "1500+10"]

1. Nf3 {[%emt 0:00:00]} Nf6 {[%emt 0:00:27]} 2. c4 {[%emt 0:00:00]} b6 {[%emt 0:00:12]} 3. d4 {[%emt 0:00:00]} e6 {[%emt 0:00:10]} 4. g3 {[%emt 0:00:00]} Bb7 {[%emt 0:00:10]} 5. Bg2 {[%emt 0:00:00]} Be7 {[%emt 0:00:10]} 6. O-O {[%emt 0:00:00]} O-O {[%emt 0:00:10]} 7. Nc3 {[%emt 0:00:00]} Ne4 {[%emt 0:00:10]} 8. Bd2 {[%emt 0:00:00]} d6 {[%emt 0:00:10]} 9. Ne1 {[%emt 0:01:17]} Nxc3 {[%emt 0:01:42]} 10. Bxc3 {[%emt 0:00:10]} Bxg2 {[%emt 0:00:10]} 11. Nxg2 {[%emt 0:00:10]} c6 {[%emt 0:00:10]} 12. d5 {[%emt 0:00:27]} Nd7 {[%emt 0:03:14]} 13. dxc6 {[%emt 0:02:56]} Nb8 {[%emt 0:00:10]} 14. Qd4 {[%emt 0:00:36]} Bf6 {[%emt 0:00:11]} 15. Qd3 {[%emt 0:00:14]} Bxc3 {[%emt 0:00:27]} 16. Qxc3 {[%emt 0:00:10]} Nxc6 {[%emt 0:00:57]} 17. Rfd1 {[%emt 0:00:10]} Qc7 {[%emt 0:00:17]} 18. b3 {[%emt 0:00:12]} Ne5 {[%emt 0:01:09]} 19. f4 {[%emt 0:00:28]} Ng4 {[%emt 0:00:22]} 20. Qd4 {[%emt 0:00:56]} Rfd8 {[%emt 0:00:35]} 21. Rd3 {[%emt 0:00:21]} d5 {[%emt 0:02:12]} 22. Rad1 {[%emt 0:00:32]} e5 {[%emt 0:00:10]} 23. fxe5 {[%emt 0:00:31]} Nxe5 {[%emt 0:00:11]} 24. R3d2 {[%emt 0:00:31]} Nc6 {[%emt 0:00:35]} 25. Qc3 {[%emt 0:00:10]} dxc4 {[%emt 0:01:04]} 26. Qxc4 {[%emt 0:00:10]} Rxd2 {[%emt 0:00:10]} 27. Rxd2 {[%emt 0:00:10]} Rc8 {[%emt 0:00:21]} 28. Nf4 {[%emt 0:00:10]} h6 {[%emt 0:00:10]} 29. Kg2 {[%emt 0:00:20]} Ne5 {[%emt 0:00:40]} 30. Qe4 {[%emt 0:00:11]} Qe7 {[%emt 0:01:14]} 31. Nd5 {[%emt 0:00:31]} Qe6 {[%emt 0:00:20]} 32. Nf4 {[%emt 0:00:10]} Qe7 {[%emt 0:00:10]} 33. Nd5 {[%emt 0:00:28]} Qe6 {[%emt 0:00:10]} 34. Nf4 {[%emt 0:00:10]} Qe7 1/2-1/2

[Event "SuperChess Cup Rapid 2019"]
[Site "Bucharest"]
[Date "2019.11.06"]
[Round "2.5"]
[White "Parligras, Mircea-Emilian"]
[Black "Miron, Lucian-Costin"]
[Result "1-0"]
[ECO "A61"]
[WhiteElo "2629"]
[BlackElo "2490"]
[Annotator "RC"]
[PlyCount "75"]
[EventDate "2019.11.06"]
[EventType "tourn"]
[EventCountry "ROU"]
[SourceTitle "playchess.com"]
[Source "ChessBase"]
[SourceQuality "1"]
[TimeMode "Bronstein"]
[TimeControl "1500+10"]

1. d4 {[%emt 0:00:00]} Nf6 {[%emt 0:00:00]} 2. c4 {[%emt 0:00:00]} e6 {[%emt 0:00:00]} 3. Nf3 {[%emt 0:00:00]} c5 {[%emt 0:00:00]} 4. d5 {[%emt 0:00:00]} exd5 {[%emt 0:00:00]} 5. cxd5 {[%emt 0:00:00]} d6 {[%emt 0:00:00]} 6. Nc3 {[%emt 0:00:00]} g6 {[%emt 0:00:00]} 7. Nd2 {[%emt 0:00:02]} Bg7 {[%emt 0:00:00]} 8. e4 {[%emt 0:00:02]} O-O {[%emt 0:00:00]} 9. Be2 {[%emt 0:00:02]} Ne8 {[%emt 0:00:00]} 10. O-O {[%emt 0:00:03]} f5 {[%emt 0:00:00]} 11. exf5 {[%emt 0:00:09]} Bxf5 {[%emt 0:00:05]} 12. Nde4 {[%emt 0:01:03]} Na6 {[%emt 0:02:16]} 13. Bg5 {[%emt 0:00:35]} Qa5 {[%emt 0:04:10]} 14. Ng3 {[%emt 0:01:46]} Bd7 {[%emt 0:01:03]} 15. h4 {[%emt 0:00:39]} Nf6 {[%emt 0:01:55]} 16. h5 {[%emt 0:01:54]} gxh5 {[%emt 0:00:10]} 17. Nxh5 {[%emt 0:01:07]} Nxh5 {[%emt 0:00:36]} 18. Bxh5 {[%emt 0:00:10]} Bf5 {[%emt 0:03:15]} 19. Be7 {[%emt 0:00:50]} Nb4 {[%emt 0:03:00]} 20. Bxd6 {[%emt 0:00:58]} Nd3 {[%emt 0:00:10]} 21. Bxf8 {[%emt 0:01:17]} Rxf8 {[%emt 0:00:10]} 22. d6 {[%emt 0:01:08]} c4 {[%emt 0:02:26]} 23. Bf3 {[%emt 0:02:31]} Qc5 {[%emt 0:01:17]} 24. Qd2 {[%emt 0:02:13]} b5 {[%emt 0:00:48]} 25. a3 {[%emt 0:01:50]} a6 {[%emt 0:00:59]} 26. Rae1 {[%emt 0:01:37]} Qxd6 {[%emt 0:00:30]} 27. Be4 {[%emt 0:00:32]} Bh6 {[%emt 0:01:41]} 28. Qd1 {[%emt 0:00:49]} Kh8 {[%emt 0:01:04]} 29. Bxf5 {[%emt 0:00:10]} Rxf5 {[%emt 0:00:10]} 30. Re8+ {[%emt 0:00:27]} Rf8 {[%emt 0:00:40]} 31. Rfe1 {[%emt 0:00:55]} Bg7 {[%emt 0:00:10]} 32. R1e6 {[%emt 0:01:01]} Qf4 {[%emt 0:00:25]} 33. Qe2 {[%emt 0:00:45]} Qc1+ {[%emt 0:00:49]} 34. Nd1 {[%emt 0:00:10]} Nf4 {[%emt 0:00:17]} 35. Rxf8+ {[%emt 0:00:34]} Bxf8 {[%emt 0:00:10]} 36. Qe5+ {[%emt 0:00:10]} Kg8 {[%emt 0:00:10]} 37. Qg5+ {[%emt 0:00:10]} Ng6 {[%emt 0:00:26]} 38. Qxc1 1-0

[Event "SuperChess Cup Rapid 2019"]
[Site "Bucharest"]
[Date "2019.11.07"]
[Round "5.4"]
[White "Gavrilescu, David"]
[Black "Cosma, Elena-Luminita"]
[Result "1-0"]
[ECO "C18"]
[WhiteElo "2451"]
[BlackElo "2313"]
[Annotator "RC"]
[PlyCount "73"]
[EventDate "2019.11.06"]
[EventType "tourn"]
[EventCountry "ROU"]
[SourceTitle "playchess.com"]
[Source "ChessBase"]
[SourceQuality "1"]
[TimeMode "Bronstein"]
[TimeControl "1500+10"]

1. e4 {[%emt 0:00:00]} e6 {[%emt 0:00:00]} 2. d4 {[%emt 0:00:00]} d5 {[%emt 0:00:00]} 3. Nc3 {[%emt 0:00:00]} Bb4 {[%emt 0:00:00]} 4. e5 {[%emt 0:00:00]} c5 {[%emt 0:00:00]} 5. a3 {[%emt 0:00:00]} Bxc3+ {[%emt 0:00:00]} 6. bxc3 {[%emt 0:00:00]} Qc7 {[%emt 0:00:00]} 7. Qg4 {[%emt 0:00:08]} f5 {[%emt 0:00:00]} 8. Qg3 {[%emt 0:00:41]} Ne7 {[%emt 0:00:00]} 9. Be2 {[%emt 0:02:48]} O-O {[%emt 0:00:00]} 10. Nh3 {[%emt 0:00:30]} Nbc6 {[%emt 0:00:53]} 11. Qe3 {[%emt 0:01:40]} f4 {[%emt 0:00:52]} 12. Qd2 {[%emt 0:00:14]} Nf5 {[%emt 0:00:15]} 13. dxc5 {[%emt 0:00:48]} f3 {[%emt 0:01:18]} 14. Bxf3 {[%emt 0:02:48]} Qxe5+ {[%emt 0:00:10]} 15. Be2 {[%emt 0:01:13]} d4 {[%emt 0:00:10]} 16. Bb2 {[%emt 0:00:24]} Rd8 {[%emt 0:02:12]} 17. Kf1 {[%emt 0:02:01]} Qxc5 {[%emt 0:01:46]} 18. Re1 {[%emt 0:02:52]} e5 {[%emt 0:01:20]} 19. Bd3 {[%emt 0:00:10]} Be6 {[%emt 0:01:04]} 20. Ng5 {[%emt 0:00:37]} Bc4 {[%emt 0:00:29]} 21. Kg1 {[%emt 0:00:21]} Rf8 {[%emt 0:02:11]} 22. cxd4 {[%emt 0:01:23]} exd4 {[%emt 0:02:48]} 23. h4 {[%emt 0:00:24]} Rae8 {[%emt 0:03:49]} 24. Rh3 {[%emt 0:01:09]} h6 {[%emt 0:02:54]} 25. Ne4 {[%emt 0:01:18]} Qb5 {[%emt 0:00:10]} 26. g4 {[%emt 0:00:24]} Bxd3 {[%emt 0:00:19]} 27. cxd3 {[%emt 0:00:10]} Nd6 {[%emt 0:00:48]} 28. Nxd6 {[%emt 0:00:22]} Rxe1+ {[%emt 0:00:10]} 29. Qxe1 {[%emt 0:00:10]} Qxb2 {[%emt 0:00:10]} 30. g5 {[%emt 0:01:12]} Ne5 {[%emt 0:01:16]} 31. gxh6 {[%emt 0:00:35]} g6 {[%emt 0:00:10]} 32. Nc4 {[%emt 0:00:35]} Nxc4 {[%emt 0:01:19]} 33. dxc4 {[%emt 0:00:36]} d3 {[%emt 0:00:10]} 34. Rxd3 {[%emt 0:00:19]} Qf6 {[%emt 0:00:17]} 35. Qe3 {[%emt 0:01:45]} Qxh4 {[%emt 0:00:51]} 36. Qe6+ {[%emt 0:00:57]} Kh7 {[%emt 0:00:10]} 37. Qd7+ {[%emt 0:00:11]} 1-0

[Event "SuperChess Cup Rapid 2019"]
[Site "Bucharest"]
[Date "2019.11.08"]
[Round "7.1"]
[White "Lupulescu, Constantin"]
[Black "Istratescu, Andrei"]
[Result "1/2-1/2"]
[ECO "B48"]
[WhiteElo "2643"]
[BlackElo "2564"]
[Annotator "RC"]
[PlyCount "43"]
[EventDate "2019.11.06"]
[EventType "tourn"]
[EventCountry "ROU"]
[SourceTitle "playchess.com"]
[Source "ChessBase"]
[SourceQuality "1"]
[TimeMode "Bronstein"]
[TimeControl "1500+10"]

1. e4 {[%emt 0:00:00]} c5 {[%emt 0:00:19]} 2. Nf3 {[%emt 0:00:00]} e6 {[%emt 0:00:10]} 3. d4 {[%emt 0:00:00]} cxd4 {[%emt 0:00:10]} 4. Nxd4 {[%emt 0:00:00]} Nc6 {[%emt 0:00:10]} 5. Nc3 {[%emt 0:00:00]} Qc7 {[%emt 0:00:11]} 6. Be3 {[%emt 0:00:00]} a6 {[%emt 0:00:34]} 7. a3 {[%emt 0:00:36]} b5 {[%emt 0:00:47]} 8. Nxc6 {[%emt 0:00:10]} dxc6 {[%emt 0:02:37]} 9. Qg4 {[%emt 0:00:10]} Nf6 {[%emt 0:03:52]} 10. Qg3 {[%emt 0:00:10]} Qxg3 {[%emt 0:00:36]} 11. hxg3 {[%emt 0:00:10]} Bd6 {[%emt 0:00:12]} 12. O-O-O {[%emt 0:05:53]} Bb8 {[%emt 0:01:30]} 13. Be2 {[%emt 0:01:31]} e5 {[%emt 0:00:40]} 14. f3 {[%emt 0:03:14]} Ba7 {[%emt 0:01:29]} 15. Bxa7 {[%emt 0:00:10]} Rxa7 {[%emt 0:00:10]} 16. g4 {[%emt 0:00:10]} Rd7 {[%emt 0:01:42]} 17. Rde1 {[%emt 0:02:05]} Rd6 {[%emt 0:01:52]} 18. Nd1 {[%emt 0:01:00]} O-O {[%emt 0:02:27]} 19. g5 {[%emt 0:03:41]} Nd7 {[%emt 0:00:10]} 20. Rh5 {[%emt 0:02:33]} g6 {[%emt 0:00:45]} 21. Rh4 {[%emt 0:00:10]} f6 {[%emt 0:00:10]} 22. gxf6 {[%emt 0:00:27]} 1/2-1/2

[Event "SuperChess Cup Rapid 2019"]
[Site "Bucharest"]
[Date "2019.11.08"]
[Round "7.5"]
[White "Peptan, Corina-Isabela"]
[Black "Cosma, Elena-Luminita"]
[Result "1/2-1/2"]
[ECO "D41"]
[WhiteElo "2371"]
[BlackElo "2313"]
[Annotator "RC"]
[PlyCount "39"]
[EventDate "2019.11.06"]
[EventType "tourn"]
[EventCountry "ROU"]
[SourceTitle "playchess.com"]
[Source "ChessBase"]
[SourceQuality "1"]
[TimeMode "Bronstein"]
[TimeControl "1500+10"]

1. d4 {[%emt 0:00:00]} e6 {[%emt 0:00:00]} 2. c4 {[%emt 0:00:00]} Nf6 {[%emt 0:00:00]} 3. Nf3 {[%emt 0:00:00]} d5 {[%emt 0:00:00]} 4. Nc3 {[%emt 0:00:00]} c5 {[%emt 0:00:00]} 5. cxd5 {[%emt 0:00:16]} Nxd5 {[%emt 0:00:00]} 6. e4 {[%emt 0:00:38]} Nxc3 {[%emt 0:00:00]} 7. bxc3 {[%emt 0:00:10]} cxd4 {[%emt 0:00:00]} 8. cxd4 {[%emt 0:00:10]} Bb4+ {[%emt 0:00:00]} 9. Bd2 {[%emt 0:00:10]} Bxd2+ {[%emt 0:00:00]} 10. Qxd2 {[%emt 0:00:10]} O-O {[%emt 0:00:00]} 11. Be2 {[%emt 0:01:05]} b6 {[%emt 0:00:00]} 12. O-O {[%emt 0:00:10]} Bb7 {[%emt 0:00:00]} 13. Qe3 {[%emt 0:00:37]} Nd7 {[%emt 0:00:12]} 14. Rfd1 {[%emt 0:00:35]} Rc8 {[%emt 0:01:11]} 15. a4 {[%emt 0:02:21]} Qe7 {[%emt 0:09:21]} 16. a5 {[%emt 0:00:50]} Rc7 {[%emt 0:00:10]} 17. axb6 {[%emt 0:01:05]} axb6 {[%emt 0:00:10]} 18. Rdc1 {[%emt 0:09:11]} Rxc1+ {[%emt 0:00:58]} 19. Rxc1 {[%emt 0:00:10]} Nf6 {[%emt 0:00:59]} 20. Bd3 {[%emt 0:00:59]} 1/2-1/2

[Event "SuperChess Cup Rapid 2019"]
[Site "Bucharest"]
[Date "2019.11.08"]
[Round "8.1"]
[White "Istratescu, Andrei"]
[Black "Cosma, Elena-Luminita"]
[Result "1/2-1/2"]
[ECO "C09"]
[WhiteElo "2564"]
[BlackElo "2313"]
[Annotator "RC"]
[PlyCount "72"]
[EventDate "2019.11.06"]
[EventType "tourn"]
[EventCountry "ROU"]
[SourceTitle "playchess.com"]
[Source "ChessBase"]
[SourceQuality "1"]
[TimeMode "Bronstein"]
[TimeControl "1500+10"]

1. e4 {[%emt 0:00:00]} e6 {[%emt 0:00:00]} 2. d4 {[%emt 0:00:00]} d5 {[%emt 0:00:00]} 3. Nd2 {[%emt 0:00:00]} c5 {[%emt 0:00:00]} 4. exd5 {[%emt 0:00:00]} exd5 {[%emt 0:00:00]} 5. Ngf3 {[%emt 0:00:00]} Nc6 {[%emt 0:00:00]} 6. Bb5 {[%emt 0:00:00]} cxd4 {[%emt 0:00:00]} 7. Nxd4 {[%emt 0:01:23]} Bd7 {[%emt 0:00:00]} 8. N2f3 {[%emt 0:01:27]} Bd6 {[%emt 0:00:05]} 9. O-O {[%emt 0:01:03]} Nge7 {[%emt 0:00:05]} 10. h3 {[%emt 0:06:47]} O-O {[%emt 0:00:19]} 11. Bd3 {[%emt 0:00:10]} Nxd4 {[%emt 0:00:51]} 12. Nxd4 {[%emt 0:00:10]} Nc6 {[%emt 0:00:10]} 13. Nf3 {[%emt 0:01:57]} h6 {[%emt 0:02:41]} 14. c3 {[%emt 0:00:47]} Qf6 {[%emt 0:00:10]} 15. Bc2 {[%emt 0:01:28]} Ne5 {[%emt 0:04:28]} 16. Nxe5 {[%emt 0:00:28]} Qxe5 {[%emt 0:00:13]} 17. f4 {[%emt 0:00:10]} Bc5+ {[%emt 0:00:10]} 18. Kh1 {[%emt 0:00:10]} Qd6 {[%emt 0:00:34]} 19. Qd3 {[%emt 0:02:31]} g6 {[%emt 0:00:58]} 20. Be3 {[%emt 0:00:52]} Bf5 {[%emt 0:02:33]} 21. Bxc5 {[%emt 0:00:10]} Qxc5 {[%emt 0:00:10]} 22. Qd2 {[%emt 0:00:10]} d4 {[%emt 0:00:51]} 23. Bxf5 {[%emt 0:00:10]} dxc3 {[%emt 0:00:10]} 24. Qxc3 {[%emt 0:00:10]} Qxf5 {[%emt 0:00:10]} 25. Rae1 {[%emt 0:00:54]} Rae8 {[%emt 0:01:36]} 26. Qc7 {[%emt 0:00:51]} Qb5 {[%emt 0:01:20]} 27. b3 {[%emt 0:00:43]} Rc8 {[%emt 0:01:29]} 28. Qe5 {[%emt 0:00:14]} Qxe5 {[%emt 0:00:44]} 29. Rxe5 {[%emt 0:00:10]} Rfe8 {[%emt 0:00:28]} 30. Rfe1 {[%emt 0:00:10]} Rxe5 {[%emt 0:00:10]} 31. Rxe5 {[%emt 0:00:10]} Rc2 {[%emt 0:00:15]} 32. a4 {[%emt 0:00:17]} Rc3 {[%emt 0:00:24]} 33. Rb5 {[%emt 0:00:15]} b6 {[%emt 0:00:10]} 34. a5 {[%emt 0:01:38]} bxa5 {[%emt 0:00:10]} 35. Rxa5 {[%emt 0:00:10]} Rxb3 {[%emt 0:00:10]} 36. Rxa7 {[%emt 0:00:10]} Rb5 {[%emt 0:00:10]} 1/2-1/2

[Event "SuperChess Cup Rapid 2019"]
[Site "Bucharest"]
[Date "2019.11.08"]
[Round "8.2"]
[White "Parligras, Mircea-Emilian"]
[Black "Peptan, Corina-Isabela"]
[Result "1-0"]
[ECO "B41"]
[WhiteElo "2629"]
[BlackElo "2371"]
[Annotator "ChessBase"]
[PlyCount "95"]
[EventDate "2019.11.06"]
[EventType "tourn"]
[EventCountry "ROU"]
[SourceTitle "playchess.com"]
[Source "ChessBase"]
[SourceQuality "1"]
[TimeMode "Bronstein"]
[TimeControl "1500+10"]

1. e4 {[%emt 0:00:00]} c5 {[%emt 0:00:00]} 2. Nf3 {[%emt 0:00:00]} e6 {[%emt 0:00:00]} 3. d4 {[%emt 0:00:00]} cxd4 {[%emt 0:00:00]} 4. Nxd4 {[%emt 0:00:00]} a6 {[%emt 0:00:00]} 5. c4 {[%emt 0:00:00]} Nf6 {[%emt 0:00:00]} 6. Nc3 {[%emt 0:00:00]} d6 {[%emt 0:00:00]} 7. Be3 {[%emt 0:00:00]} b6 {[%emt 0:00:32]} 8. Be2 {[%emt 0:00:04]} Bb7 {[%emt 0:00:10]} 9. f3 {[%emt 0:00:04]} Be7 {[%emt 0:00:25]} 10. O-O {[%emt 0:00:04]} O-O {[%emt 0:00:10]} 11. Qd2 {[%emt 0:00:04]} Qc7 {[%emt 0:00:40]} 12. Rfc1 {[%emt 0:00:04]} Nbd7 {[%emt 0:00:12]} 13. a4 {[%emt 0:00:04]} Ne5 {[%emt 0:00:21]} 14. a5 {[%emt 0:00:15]} bxa5 {[%emt 0:00:14]} 15. Nb3 {[%emt 0:00:10]} Rab8 {[%emt 0:00:25]} 16. Nxa5 {[%emt 0:00:21]} Ba8 {[%emt 0:00:10]} 17. b4 {[%emt 0:00:51]} Nfd7 {[%emt 0:02:59]} 18. Na4 {[%emt 0:01:02]} Nc6 {[%emt 0:01:29]} 19. Nxc6 {[%emt 0:00:18]} Bxc6 {[%emt 0:00:22]} 20. Nb2 {[%emt 0:03:33]} Bb7 {[%emt 0:04:40]} 21. Nd3 {[%emt 0:00:10]} Rfc8 {[%emt 0:00:20]} 22. Kh1 {[%emt 0:01:57]} Bf6 {[%emt 0:02:31]} 23. Rab1 {[%emt 0:00:10]} Ne5 {[%emt 0:00:10]} 24. Nf4 {[%emt 0:00:46]} g6 {[%emt 0:00:10]} 25. Qa2 {[%emt 0:01:47]} Ra8 {[%emt 0:01:17]} 26. c5 {[%emt 0:00:48]} dxc5 {[%emt 0:01:35]} 27. bxc5 {[%emt 0:00:10]} Nc6 {[%emt 0:00:10]} 28. Rd1 {[%emt 0:00:59]} Re8 {[%emt 0:01:43]} 29. Rb6 {[%emt 0:01:13]} Be5 {[%emt 0:00:54]} 30. Nd3 {[%emt 0:00:42]} Bg7 {[%emt 0:01:42]} 31. Rdb1 {[%emt 0:01:04]} Ra7 {[%emt 0:00:10]} 32. Bf4 {[%emt 0:01:38]} e5 {[%emt 0:00:10]} 33. Be3 {[%emt 0:00:11]} Bf8 {[%emt 0:01:01]} 34. Bd1 {[%emt 0:00:49]} Rd8 {[%emt 0:00:10]} 35. Qc4 {[%emt 0:00:59]} Bc8 {[%emt 0:01:03]} 36. Ba4 {[%emt 0:00:26]} Be6 {[%emt 0:00:10]} 37. Qc3 {[%emt 0:00:21]} Nd4 {[%emt 0:00:12]} 38. c6 {[%emt 0:00:50]} Nb5 {[%emt 0:00:38]} 39. Bxb5 {[%emt 0:00:19]} axb5 {[%emt 0:00:10]} 40. Nb4 {[%emt 0:02:53]} Bxb4 {[%emt 0:00:10]} 41. Qxb4 {[%emt 0:00:10]} Bc4 {[%emt 0:00:38]} 42. Qc5 {[%emt 0:00:39]} Rda8 {[%emt 0:00:24]} 43. h3 {[%emt 0:00:14]} Ra6 {[%emt 0:00:14]} 44. Rxa6 {[%emt 0:00:42]} Rxa6 {[%emt 0:00:10]} 45. Bh6 {[%emt 0:00:10]} Ra8 {[%emt 0:00:10]} 46. Rd1 {[%emt 0:00:10]} Rc8 {[%emt 0:00:41]} 47. Rd7 {[%emt 0:00:21]} Qa5 {[%emt 0:00:22]} 48. Qxe5 {[%emt 0:00:17]} 1-0